[Event "Romanian Team Blitz Open 2022"]
[Site "Sebes"]
[Date "2022.12.04"]
[Round "2.30"]
[White "Burja-Udrea, Razvan-Andrei"]
[Black "Campian, Cristian"]
[Result "1-0"]
[ECO "B22"]
[WhiteElo "1365"]
[BlackElo "1998"]
[Annotator "TA"]
[PlyCount "55"]
[EventDate "2022.12.04"]
[EventType "blitz"]
[EventCountry "ROU"]
[SourceTitle "playchess.com"]
[Source "ChessBase"]
[SourceQuality "1"]
[TimeControl "180+2"]

{[%evp 12,55,33,0,9,-8,22,16,35,36,58,35,35,13,47,0,0,-26,-3,-61,35,0,16,21,16,-51,-41,-60,-25,-77,-73,-121,-129,-144,-145,-127,-80,-78,-45,-68,-64,-65,-66,-67,-62,-66]} 1. e4 {[%emt 0:00:02]} c5 {[%emt 0:00:00]} 2. Nf3 {[%emt 0:00:01]} Nc6 {[%emt 0:00:01]} 3. c3 {[%emt 0:03:05]} d5 {[%emt 0:00:04]} 4. exd5 {[%emt 0:00:00]} Qxd5 {[%emt 0:00:01]} 5. d4 {[%emt 0:00:00]} e6 {[%emt 0:00:16]} 6. Be3 {[%emt 0:00:00]} cxd4 {[%emt 0:00:03]} 7. Nxd4 {[%emt 0:00:00]} Nxd4 {[%emt 0:00:02] B22: Sicilian: 2 c3.} 8. Qxd4 {[%emt 0:00:00]} Qxd4 {[%emt 0:00:01]} 9. Bxd4 {[%emt 0:00:00]} Nf6 {[%emt 0:00:04] The position is equal.} 10. Nd2 {[%emt 0:00:00][%cal Bb1d2,Bd2f3,Bf3e5][%mdl 32]} Bd7 {[%emt 0:00:03]} 11. O-O-O {[%emt 0:00:00]} Bc6 {[%emt 0:00:02]} 12. Nf3 {[%emt 0:00:00]} Be7 {[%emt 0:00:07] [#]} 13. Be2 $146 {[%emt 0:00:00]} (13. Ne5 $14 {might be stronger.}) ({Predecessor:} 13. Ne5 Bd5 14. Bb5+ Kf8 15. f3 Bxa2 16. g4 a6 17. Bd3 Bd5 18. Rhf1 Bd6 19. g5 Bxe5 20. Bxe5 {0-1 (47) Lauer,F (1187)-Koepcke,K (1402) LSS email 2017}) 13... O-O $11 {[%emt 0:00:04]} 14. h4 {[%emt 0:00:00]} a6 {[%emt 0:00:17]} 15. h5 {[%emt 0:00:00]} (15. Rhg1 $11) 15... Nd5 {[%emt 0:00:17]} ({Better is} 15... Rfd8 $15) 16. h6 {[%emt 0:00:00]} (16. Ne5 $5 {[%cal Re5c6]}) 16... g6 {[%emt 0:00:15]} (16... Nf4 $5 {[%cal Rf4e2]} 17. hxg7 Nxe2+ 18. Kd2 Rfd8 19. Kxe2 f6 $11) 17. Ne5 {[%emt 0:00:00]} Nf4 {[%emt 0:00:17]} 18. Bf3 {[%emt 0:00:00]} ({White should play} 18. Nxc6 $11 Nxe2+ 19. Kd2 bxc6 20. Kxe2) 18... Bxf3 $15 {[%emt 0:00:05]} 19. gxf3 {[%emt 0:00:00]} Ne2+ {[%emt 0:00:14]} 20. Kb1 {[%emt 0:00:00] [#]} (20. Kc2 $1 $11 {remains equal.} Nxd4+ 21. Rxd4) 20... Nxd4 $1 $17 {[%emt 0:00:01]} 21. cxd4 {[%emt 0:00:00]} (21. Rxd4 $142 Rfd8 22. Nd7) 21... Rfd8 {[%emt 0:00:18]} 22. Nc4 {[%emt 0:00:00]} Rac8 {[%emt 0:00:07]} 23. Ne3 {[%emt 0:00:00]} Bf6 {[%emt 0:00:07]} (23... f5 $142 24. d5 Kf7) 24. d5 {[%emt 0:00:00]} exd5 {[%emt 0:01:04]} 25. Nxd5 {[%emt 0:00:00] Black is slightly better.} Rd6 {[%emt 0:00:00]} 26. Nxf6+ {[%emt 0:00:00]} Rxf6 {[%emt 0:00:00]} 27. Rh3 {[%emt 0:00:00]} Kf8 {[%emt 0:00:00]} 28. Rd7 {[%emt 0:00:00][%mdl 32768] Weighted Error Value: White=0.26 (precise) /Black=0.21 (precise) . Loss on time!?} 1-0

[Event "Romanian Team Blitz Open 2022"]
[Site "Sebes"]
[Date "2022.12.04"]
[Round "2.31"]
[White "Sandru, Nicolae"]
[Black "Simina, Alexandru-Ioan"]
[Result "1-0"]
[ECO "D00"]
[WhiteElo "1647"]
[BlackElo "1244"]
[Annotator "NA RC COMBH"]
[PlyCount "93"]
[EventDate "2022.12.04"]
[EventType "blitz"]
[EventCountry "ROU"]
[SourceTitle "playchess.com"]
[Source "ChessBase"]
[SourceQuality "1"]
[TimeControl "180+2"]

1. d4 {[%emt 0:00:03]} d5 {[%emt 0:00:01]} 2. Bf4 {[%emt 0:00:01]} Nf6 {[%emt 0:00:11]} 3. e3 {[%emt 0:00:01]} a6 {[%emt 0:00:03]} 4. c3 {[%emt 0:00:01]} Bf5 {[%emt 0:00:12]} 5. Bd3 {[%emt 0:00:02]} Bxd3 {[%emt 0:00:05]} 6. Qxd3 {[%emt 0:00:01]} c5 {[%emt 0:00:09]} 7. Nd2 {[%emt 0:00:01]} e6 {[%emt 0:00:09]} 8. Ngf3 {[%emt 0:00:03]} cxd4 {[%emt 0:00:12]} 9. exd4 {[%emt 0:00:02]} Nc6 {[%emt 0:00:10]} 10. O-O {[%emt 0:00:02]} Bd6 {[%emt 0:00:06]} 11. Ne5 {[%emt 0:00:09]} O-O {[%emt 0:00:22]} 12. Rfe1 {[%emt 0:00:03]} Bxe5 {[%emt 0:00:13]} 13. dxe5 {[%emt 0:00:03]} Nd7 {[%emt 0:00:35]} 14. h3 {[%emt 0:00:08]} b5 {[%emt 0:00:05]} 15. Qg3 {[%emt 0:00:06]} Re8 {[%emt 0:00:25]} 16. Nf3 {[%emt 0:00:14]} f6 {[%emt 0:00:13]} 17. exf6 {[%emt 0:02:36]} Nxf6 {[%emt 0:00:25]} 18. Bg5 {[%emt 0:00:00]} Nh5 {[%emt 0:00:00]} 19. Qh4 {[%emt 0:00:04]} Nf6 {[%emt 0:00:00]} 20. Rad1 {[%emt 0:00:00]} Rf8 {[%emt 0:00:02]} 21. Rxe6 {[%emt 0:00:00]} Qd7 {[%emt 0:00:02]} 22. Re2 {[%emt 0:00:00]} Rae8 {[%emt 0:00:03]} 23. Ree1 {[%emt 0:00:00]} Ne5 {[%emt 0:00:02]} 24. Nxe5 {[%emt 0:00:00]} Qe7 {[%emt 0:00:01]} 25. f4 {[%emt 0:00:00]} h6 {[%emt 0:00:02]} 26. Bxf6 {[%emt 0:00:00]} gxf6 {[%emt 0:00:02]} 27. Nf3 {[%emt 0:00:00]} Qg7 {[%emt 0:00:01]} 28. Nd4 {[%emt 0:00:00]} Rxe1+ {[%emt 0:00:02]} 29. Rxe1 {[%emt 0:00:00]} Rd8 {[%emt 0:00:01]} 30. Ne6 {[%emt 0:00:00]} Qd7 {[%emt 0:00:03]} 31. Qxf6 {[%emt 0:00:07]} Qf7 {[%emt 0:00:02]} 32. Qxh6 {[%emt 0:00:05]} Qh7 {[%emt 0:00:03]} 33. Qxh7+ {[%emt 0:00:02]} Kxh7 {[%emt 0:00:01]} 34. Nxd8 {[%emt 0:00:01]} b4 {[%emt 0:00:02]} 35. cxb4 {[%emt 0:00:01]} d4 {[%emt 0:00:00]} 36. Rd1 {[%emt 0:00:01]} a5 {[%emt 0:00:02]} 37. bxa5 {[%emt 0:00:01]} Kg6 {[%emt 0:00:01]} 38. Rxd4 {[%emt 0:00:01]} Kf5 {[%emt 0:00:00]} 39. a6 {[%emt 0:00:01]} Kf6 {[%emt 0:00:02]} 40. a7 {[%emt 0:00:01]} Ke7 {[%emt 0:00:01]} 41. a8=Q {[%emt 0:00:02]} Ke8 {[%emt 0:00:03]} 42. Nc6+ {[%emt 0:00:02]} Kf7 {[%emt 0:00:01]} 43. Qd8 {[%emt 0:00:02]} Ke6 {[%emt 0:00:01]} 44. Qd6+ {[%emt 0:00:02]} Kf7 {[%emt 0:00:02]} 45. Re4 {[%emt 0:00:01]} Kg7 {[%emt 0:00:14]} 46. Re7+ {[%emt 0:00:03]} Kf8 {[%emt 0:00:00]} 47. Qd8# {[%emt 0:00:01]} 1-0

[Event "Romanian Team Blitz Open 2022"]
[Site "Sebes"]
[Date "2022.12.04"]
[Round "2.32"]
[White "Simina, Andrei-Petru"]
[Black "Tarciuc, Ianis-Mihai"]
[Result "1-0"]
[ECO "A48"]
[WhiteElo "1033"]
[BlackElo "1642"]
[Annotator "NA RC COMBH"]
[PlyCount "103"]
[EventDate "2022.12.04"]
[EventType "blitz"]
[EventCountry "ROU"]
[SourceTitle "playchess.com"]
[Source "ChessBase"]
[SourceQuality "1"]
[TimeControl "180+2"]

1. d4 {[%emt 0:00:01]} Nf6 {[%emt 0:00:01]} 2. Nc3 {[%emt 0:00:01]} g6 {[%emt 0:00:02]} 3. Nf3 {[%emt 0:00:03]} Bg7 {[%emt 0:00:02]} 4. Bf4 {[%emt 0:00:03]} d6 {[%emt 0:00:02]} 5. e3 {[%emt 0:00:05]} Nbd7 {[%emt 0:00:02]} 6. Bb5 {[%emt 0:00:02]} O-O {[%emt 0:00:02]} 7. Bxd7 {[%emt 0:00:01]} Bxd7 {[%emt 0:00:02]} 8. Bg5 {[%emt 0:00:02]} Re8 {[%emt 0:00:11]} 9. Bxf6 {[%emt 0:00:02]} Bxf6 {[%emt 0:00:02]} 10. O-O {[%emt 0:00:03]} e5 {[%emt 0:00:01]} 11. dxe5 {[%emt 0:00:01]} dxe5 {[%emt 0:00:07]} 12. Nd5 {[%emt 0:00:13]} Bc6 {[%emt 0:00:24]} 13. Nxf6+ {[%emt 0:00:04]} Qxf6 {[%emt 0:00:02]} 14. Qe2 {[%emt 0:00:25]} Bxf3 {[%emt 0:00:02]} 15. Qxf3 {[%emt 0:00:05]} Qxf3 {[%emt 0:00:04]} 16. gxf3 {[%emt 0:00:01]} Rad8 {[%emt 0:00:47]} 17. Rad1 {[%emt 0:00:02]} Kf8 {[%emt 0:00:01]} 18. Rd3 {[%emt 0:00:04]} Rxd3 {[%emt 0:00:03]} 19. cxd3 {[%emt 0:00:01]} Rd8 {[%emt 0:00:01]} 20. Rd1 {[%emt 0:00:02]} Ke7 {[%emt 0:00:01]} 21. Kf1 {[%emt 0:00:09]} Rd6 {[%emt 0:00:04]} 22. Ke2 {[%emt 0:00:01]} f5 {[%emt 0:00:14]} 23. Rc1 {[%emt 0:00:03]} Kd7 {[%emt 0:00:03]} 24. Rc5 {[%emt 0:00:01]} Re6 {[%emt 0:00:08]} 25. Ra5 {[%emt 0:00:02]} a6 {[%emt 0:00:03]} 26. Rd5+ {[%emt 0:00:03]} Ke7 {[%emt 0:00:07]} 27. Rc5 {[%emt 0:00:06]} Kd6 {[%emt 0:00:03]} 28. Rc4 {[%emt 0:00:02]} g5 {[%emt 0:00:37]} 29. Rb4 {[%emt 0:00:02]} b6 {[%emt 0:00:06]} 30. f4 {[%emt 0:00:07]} gxf4 {[%emt 0:00:09]} 31. exf4 {[%emt 0:00:06]} exf4+ {[%emt 0:00:05]} 32. Kf3 {[%emt 0:00:07]} Rh6 {[%emt 0:00:06]} 33. Rxf4 {[%emt 0:00:04]} Ke5 {[%emt 0:00:03]} 34. Rc4 {[%emt 0:00:13]} c5 {[%emt 0:00:13]} 35. h4 {[%emt 0:00:12]} Rd6 {[%emt 0:00:03]} 36. Rc3 {[%emt 0:00:05]} Rd4 {[%emt 0:00:03]} 37. Ra3 {[%emt 0:00:10]} a5 {[%emt 0:00:04]} 38. Rb3 {[%emt 0:00:02]} Rxh4 {[%emt 0:00:04]} 39. Rxb6 {[%emt 0:00:03]} Rd4 {[%emt 0:00:01]} 40. Rb5 {[%emt 0:00:05]} Rxd3+ {[%emt 0:00:02]} 41. Ke2 {[%emt 0:00:01]} Rd5 {[%emt 0:00:01]} 42. Rxa5 {[%emt 0:00:01]} h5 {[%emt 0:00:02]} 43. Ra4 {[%emt 0:00:03]} Rd6 {[%emt 0:00:03]} 44. Rh4 {[%emt 0:00:05]} Rh6 {[%emt 0:00:01]} 45. Ke3 {[%emt 0:00:04]} Kd5 {[%emt 0:00:04]} 46. Kd3 {[%emt 0:00:02]} Ke5 {[%emt 0:00:02]} 47. Ke3 {[%emt 0:00:01]} c4 {[%emt 0:00:01]} 48. Rxc4 {[%emt 0:00:04]} h4 {[%emt 0:00:01]} 49. Rc1 {[%emt 0:00:01]} h3 {[%emt 0:00:03]} 50. Rh1 {[%emt 0:00:02]} f4+ {[%emt 0:00:03]} 51. Kf3 {[%emt 0:00:02]} Rb6 {[%emt 0:00:06]} 52. b3 {[%emt 0:01:16]} 1-0

[Event "Romanian Team Blitz Open 2022"]
[Site "Sebes"]
[Date "2022.12.04"]
[Round "3.1"]
[White "Soltanici, Ruslan"]
[Black "Lupulescu, Constantin"]
[Result "0-1"]
[ECO "B66"]
[WhiteElo "2357"]
[BlackElo "2591"]
[Annotator "TA"]
[PlyCount "50"]
[EventDate "2022.12.04"]
[EventType "blitz"]
[EventCountry "ROU"]
[SourceTitle "playchess.com"]
[Source "ChessBase"]
[SourceQuality "1"]
[TimeControl "180+2"]

{[%evp 18,50,17,9,19,0,16,18,5,0,0,0,0,0,0,-46,140,144,140,128,134,0,0,0,0,-139,-132,-357,-362,-355,-351,-5022,-1347,-1306,-1235]} 1. e4 {[%emt 0:00:01]} c5 {[%emt 0:00:01]} 2. Nf3 {[%emt 0:00:01]} d6 {[%emt 0:00:01]} 3. d4 {[%emt 0:00:01]} cxd4 4. Nxd4 {[%emt 0:00:01]} Nf6 {[%emt 0:00:02]} 5. Nc3 {[%emt 0:00:01]} Nc6 {[%emt 0:00:04]} 6. Bg5 {[%emt 0:00:02]} e6 {[%emt 0:00:01]} 7. Qd2 {[%emt 0:00:01]} a6 {[%emt 0:00:02]} 8. O-O-O {[%emt 0:00:02]} Be7 {[%emt 0:00:01]} 9. f3 {[%emt 0:00:04]} Nxd4 {[%emt 0:00:13]} 10. Qxd4 {[%emt 0:00:02]} b5 {[%emt 0:00:09] B66: Sicilian: Richter-Rauzer: 7...a6 8 0-0-0 h6.} 11. h4 {[%emt 0:00:04]} h6 $5 {[%emt 0:00:15][%mdl 4] Leaves trodden paths.} 12. Be3 {[%emt 0:00:02]} Bb7 {[%emt 0:00:01] The position is equal.} 13. g4 {[%emt 0:00:20]} (13. Be2 {with more complications.} Qc7 14. g4 d5 15. exd5 e5 16. Qb6) 13... d5 {[%emt 0:00:11]} 14. exd5 {[%emt 0:01:28]} Nxd5 {[%emt 0:00:01]} 15. Nxd5 {[%emt 0:00:03]} (15. Qxg7 $2 Bf6 $19) 15... Bxd5 {[%emt 0:00:05]} 16. Be2 {[%emt 0:00:07]} (16. Qxg7 $2 Bf6 $19) (16. Bd3 $11) 16... Bxh4 $2 {[%emt 0:00:37] [#]} (16... Rc8 $15) 17. Rxh4 $146 {[%emt 0:00:10][%mdl 576]} ({Predecessor:} 17. Kb1 Bf6 18. Qb4 Be7 19. Qd4 Qa5 20. a3 b4 21. Qxg7 Rf8 22. Rxd5 Qxd5 23. Rd1 Qb7 24. a4 b3 25. c3 Qc6 26. Bxh6 Qxa4 27. Qh7 Qa2+ {0-1 (27) Repkova,E-Kramnik,V (2751) ICC INT 1999}) 17... Qxh4 {[%emt 0:00:02]} 18. Qxg7 {[%emt 0:00:02]} O-O-O {[%emt 0:00:06]} 19. a4 {[%emt 0:00:37]} ({Resist} 19. Qxf7 Rd7 20. Qf4 Rhd8 $14) ({White should try} 19. Qc3+ $16 Kb7 20. Qd4 (20. Qc5 Qh2 $16)) 19... Qh2 $11 {[%emt 0:00:21]} (19... bxa4 $2 20. Bxa6+ Kc7 21. Qc3+ Kd7 22. Bb5+ Ke7 23. Bc5+ Rd6 24. Qxh8 $18) 20. Qc3+ {[%emt 0:00:23]} Qc7 {[%emt 0:00:08] [#] aiming for ...Qxc3.} 21. Qa3 {[%emt 0:00:07]} (21. Bc5 $11) 21... Bc4 $17 {[%emt 0:00:05]} 22. Bxc4 {[%emt 0:00:03] White does not recover from this.} (22. Rxd8+ $17 {was the only chance.} Rxd8 23. Bd1) 22... Rxd1+ $19 {[%emt 0:00:12]} ({Inferior is} 22... bxc4 23. Rh1 $17) 23. Kxd1 {[%emt 0:00:01] Bd3 is the strong threat.} Qxc4 {[%emt 0:00:05]} 24. b3 $2 {[%emt 0:00:03]} (24. axb5 Qf1+ 25. Kd2 Rd8+ 26. Kc3 Qxb5 27. Qc5+ Qxc5+ 28. Bxc5) 24... Qf1+ {[%emt 0:00:06]} 25. Kd2 {[%emt 0:00:01]} Rd8+ {[%emt 0:00:01] Weighted Error Value: White=1.11/Black=0.25 (precise)} ({And not} 25... Qxf3 26. Qc5+ Kd7 27. Qa7+ Kd6 28. Qc5+ Kd7 29. Qa7+ Kd6 30. Qc5+ Kd7 $11) 0-1

[Event "Romanian Team Blitz Open 2022"]
[Site "Sebes"]
[Date "2022.12.04"]
[Round "3.2"]
[White "Jianu, Vlad-Cristian"]
[Black "Cosma, Ioan"]
[Result "1-0"]
[ECO "D02"]
[WhiteElo "2516"]
[BlackElo "2368"]
[Annotator "TA"]
[PlyCount "86"]
[EventDate "2022.12.04"]
[EventType "blitz"]
[EventCountry "ROU"]
[SourceTitle "playchess.com"]
[Source "ChessBase"]
[SourceQuality "1"]
[TimeControl "180+2"]

{[%evp 9,86,16,53,42,50,59,63,46,62,64,68,43,44,20,24,39,56,20,17,0,29,37,36,36,77,55,74,62,95,95,140,154,139,42,138,145,244,231,329,321,315,307,250,153,394,53,52,7,12,0,0,0,30,15,58,34,141,0,0,0,0,0,0,-70,17,10,6,10,6,-23,-26,-26,0,0,0,0,46,39,102]} 1. d4 {[%emt 0:00:01]} Nf6 {[%emt 0:00:01]} 2. Nf3 {[%emt 0:00:01]} d5 {[%emt 0:00:01]} 3. g3 {[%emt 0:00:01]} c5 {[%emt 0:00:06]} 4. Bg2 {[%emt 0:00:04]} Nc6 {[%emt 0:00:08]} 5. O-O {[%emt 0:00:01]} h6 {[%emt 0:00:03]} 6. c4 {[%emt 0:00:19] Strongly threatening cxd5. D02: 1 d4 d5 2 Nf3 sidelines, including 2...Nf6 3 g3 and 2...Nf6 3 Bf4.} e6 {[%emt 0:00:14]} 7. cxd5 {[%emt 0:00:19]} Nxd5 {[%emt 0:00:04]} 8. Nc3 {[%emt 0:00:01]} Nxc3 {[%emt 0:00:10]} 9. bxc3 {[%emt 0:00:01][%cal Bb2c3,Bc3d4,Bd4d5][%mdl 32]} Be7 {[%emt 0:00:03]} 10. e4 {[%emt 0:00:03]} O-O {[%emt 0:00:07]} 11. Be3 {[%emt 0:00:03] [#]} cxd4 $146 {[%emt 0:00:05]} ({Predecessor:} 11... Qa5 12. Qb3 Rd8 13. Rfd1 Qb6 14. Rab1 Qa5 15. d5 Nb8 16. Ne5 Bd6 17. Nc4 Qc7 18. Nxd6 Rxd6 {1-0 (45) Samaganova,A (1965)-Shih,C (1582) Chess.com INT 2021}) 12. cxd4 {[%emt 0:00:01]} Na5 {[%emt 0:00:01]} 13. Rc1 {[%emt 0:00:08]} b6 {[%emt 0:00:02]} 14. d5 {[%emt 0:00:05]} Ba6 {[%emt 0:00:07]} 15. Re1 {[%emt 0:00:04]} Bb4 {[%emt 0:00:05]} 16. Bd2 {[%emt 0:00:08]} Bxd2 {[%emt 0:00:18]} 17. Qxd2 {[%emt 0:00:01]} exd5 {[%emt 0:00:05]} 18. exd5 {[%emt 0:00:01] And now d6 would win.} (18. Qxd5 Bc4 19. Qd4 (19. Rxc4 $2 Qxd5 20. exd5 Nxc4 $19) 19... Bxa2 $11) 18... Qd6 {[%emt 0:00:04]} 19. Nd4 {[%emt 0:00:10]} Rad8 {[%emt 0:00:19]} 20. Nf5 $36 {[%emt 0:00:27][%mdl 2048] Black is under strong pressure.} Qf6 {[%emt 0:00:04]} 21. Ne3 {[%emt 0:00:01] White is much more active. The black rooks are badly placed.} (21. Ne7+ $16 Kh8 22. Rc7) 21... Qd6 {[%emt 0:00:09]} (21... Rfe8 $14) 22. Qd4 $16 {[%emt 0:00:07]} Rfe8 {[%emt 0:00:12]} (22... Bc8 $16) 23. Nf5 $1 $18 {[%emt 0:00:08][%csl Gf5,LRd6,LRg7][%cal Rd4g7] [#]} Qf6 {[%emt 0:00:07]} (23... Rxe1+ $142 24. Rxe1 Qf8) 24. Rxe8+ {[%emt 0:00:16]} Rxe8 {[%emt 0:00:01]} 25. Qxf6 {[%emt 0:00:01]} gxf6 26. d6 (26. Nxh6+ Kf8 27. Ng4 Kg7) 26... Kf8 $2 {[%emt 0:00:13]} (26... Bc4 $16) 27. h4 $2 {[%emt 0:00:20]} (27. Nxh6 Bc4 $16) ({Only move:} 27. d7 $18 Rd8 28. Rc7 (28. Nxh6 Rxd7 29. Nf5 Bc4 $14)) 27... Bc4 $14 {[%emt 0:00:10]} 28. a3 {[%emt 0:00:09]} Rd8 {[%emt 0:00:05]} 29. Rd1 {[%emt 0:00:03][%cal Og2d5]} Be6 {[%emt 0:00:04]} 30. Ne3 {[%emt 0:00:09]} (30. Nxh6 $2 {perishes.} Kg7 31. Nxf7 (31. d7 $2 Kxh6 32. Bf1 Rxd7 $19) 31... Kxf7 $19) 30... Bd7 {[%emt 0:00:14]} 31. Be4 {[%emt 0:00:11]} Ba4 {[%emt 0:00:15]} 32. Rd4 {[%emt 0:00:02]} Bc6 {[%emt 0:00:01] [#]} (32... Bd7 $14) 33. Nf5 {[%emt 0:00:05]} (33. Bxc6 $1 $16 Nxc6 34. Rd1) 33... Nb3 $1 $11 {[%emt 0:00:10]} 34. Rc4 {[%emt 0:00:01]} (34. Bxc6 $2 {is the wrong capture.} Nxd4 35. Nxd4 Rxd6 $19) 34... Bd7 {[%emt 0:00:09] Threatens to win with ...Nd2.} 35. Ne3 {[%emt 0:00:16]} ({Reject} 35. Nxh6 Nd2 36. Nxf7 Kxf7 37. Bd5+ Kf8 $17) 35... Nc5 {[%emt 0:00:03]} 36. Bd5 {[%emt 0:00:01]} (36. Rd4 $11) 36... Rc8 {[%emt 0:00:05]} (36... Bc8 $15) 37. Rf4 {[%emt 0:00:02]} Kg7 {[%emt 0:00:03]} 38. g4 {[%emt 0:00:03]} Rd8 {[%emt 0:00:03]} 39. g5 {[%emt 0:00:01]} hxg5 {[%emt 0:00:04]} 40. hxg5 {[%emt 0:00:01]} f5 {[%emt 0:00:00]} 41. Nxf5+ {[%emt 0:00:03]} Bxf5 42. Rxf5 {[%emt 0:00:01] Black must now prevent Rf6.} Rxd6 {[%emt 0:00:03]} (42... Kg6 $11 43. Rxf7 Rxd6) 43. Bxf7 $14 {[%emt 0:00:01]} Ne4 {[%emt 0:00:10] White really could win this.   Weighted Error Value: White=0.34/Black=0.35} ({Black should try} 43... Rd3 $14) 1-0

[Event "Romanian Team Blitz Open 2022"]
[Site "Sebes"]
[Date "2022.12.04"]
[Round "3.3"]
[White "Itkis, Boris"]
[Black "Parligras, Mircea-Emilian"]
[Result "1/2-1/2"]
[ECO "A13"]
[WhiteElo "2343"]
[BlackElo "2567"]
[Annotator "TA"]
[PlyCount "115"]
[EventDate "2022.12.04"]
[EventType "blitz"]
[EventCountry "ROU"]
[SourceTitle "playchess.com"]
[Source "ChessBase"]
[SourceQuality "1"]
[TimeControl "180+2"]

{[%evp 14,115,0,20,30,0,2,0,20,19,23,20,18,-29,-25,-35,-39,-33,-24,-27,-34,-20,-29,-23,-21,-46,-29,-35,-36,-13,0,0,0,0,0,-8,-8,-8,-4,-112,-84,-75,-77,-94,-15,-18,-18,-18,-18,-18,-18,-17,-18,-18,-18,-18,-18,-18,-18,-18,-18,-18,-18,-27,-24,-24,-24,-27,-16,-24,-8,-8,-8,-8,0,-7,0,-30,-8,-8,-8,-8,-8,-8,0,-10,-10,-4629,-4618,-4606,-4606,-4587,-4562,-3169,-744,-718,-10,-10,-10,-10,-10,-10,0,-10]} 1. c4 {[%emt 0:00:01]} e6 {[%emt 0:00:02]} 2. Nf3 {[%emt 0:00:01]} d5 {[%emt 0:00:01]} 3. g3 {[%emt 0:00:00]} Nf6 {[%emt 0:00:03]} 4. Bg2 {[%emt 0:00:01]} d4 {[%emt 0:00:01]} 5. O-O {[%emt 0:00:02]} c5 6. e3 {[%emt 0:03:09]} Nc6 {[%emt 0:00:03]} 7. exd4 {[%emt 0:00:00]} cxd4 {[%emt 0:00:02]} 8. d3 {[%emt 0:00:00]} h6 {[%emt 0:00:01] A13: English Opening: 1...e6.} 9. a3 {[%emt 0:00:00]} a5 {[%emt 0:00:02] Against b4} 10. Bf4 {[%emt 0:00:00]} Bd6 {[%emt 0:00:01] Against Ne5} 11. Bxd6 {[%emt 0:00:00]} Qxd6 {[%emt 0:00:02]} 12. Nbd2 {[%emt 0:00:00]} O-O {[%emt 0:00:03] [#]} 13. Ne1 $146 {[%emt 0:00:00]} (13. Re1 {was preferrable.}) ({Predecessor:} 13. Rc1 e5 14. c5 Qc7 15. Nc4 Be6 16. Re1 Nd7 17. Qe2 e4 18. dxe4 Nxc5 19. Ncd2 {1-0 (34) Gagunashvili,M (2580)-Arutinian,D (2551) Tbilisi 2020}) 13... e5 $11 {[%emt 0:00:07]} 14. Nc2 {[%emt 0:00:00]} Bf5 {[%emt 0:00:05]} 15. Qe2 {[%emt 0:00:00]} Rfe8 {[%emt 0:00:10][%cal Oe5e4]} 16. Ne4 {[%emt 0:00:00]} Nxe4 {[%emt 0:00:06]} 17. Bxe4 {[%emt 0:00:00]} Bxe4 {[%emt 0:00:03]} 18. Qxe4 {[%emt 0:00:00]} a4 {[%emt 0:00:12]} 19. Rfe1 {[%emt 0:00:00]} Qd7 {[%emt 0:00:04]} 20. Nb4 {[%emt 0:00:00]} Nxb4 {[%emt 0:00:02]} 21. axb4 {[%emt 0:00:00]} f5 {[%emt 0:00:02]} 22. Qf3 {[%emt 0:00:00]} Re7 {[%emt 0:00:47]} 23. b5 {[%emt 0:00:00]} Rae8 {[%emt 0:00:02]} 24. Rxa4 {[%emt 0:00:00]} e4 {[%emt 0:00:02]} 25. Qd1 {[%emt 0:00:00]} e3 {[%emt 0:00:29]} 26. Kg2 {[%emt 0:00:05]} (26. f4 $11) 26... f4 {[%emt 0:00:17] aiming for ...e2.} 27. Qf3 {[%emt 0:00:07]} (27. gxf4 e2 28. Qb3 Qg4+ 29. Kh1 Qf3+ 30. Kg1 Qxf4 31. c5+ Rf7 32. Raa1 Qxf2+ 33. Kh1 Qf3+ 34. Kg1 Re5) 27... fxg3 {[%emt 0:00:06]} 28. hxg3 {[%emt 0:00:20]} Rf8 {[%emt 0:00:06]} ({Black should play} 28... Re5 $17 {...Rf5 is the strong threat.} 29. Ra7 Rf8) 29. Qd5+ {[%emt 0:00:02]} Qxd5+ {[%emt 0:00:01]} 30. cxd5 {[%emt 0:00:00][%cal Bc4d5,Bd5d6][%mdl 32]} Rxf2+ {[%emt 0:00:03][%mdl 4096] Endgame KRR-KRR} 31. Kh3 {[%emt 0:00:06]} e2 {[%emt 0:00:34]} 32. d6 $1 {[%emt 0:00:04]} Rd7 {[%emt 0:00:06]} 33. Rxd4 {[%emt 0:00:01]} Kf7 {[%emt 0:00:03]} (33... Kf8 {simplifies} 34. Re4 Rxd6 35. R1xe2 Rxe2 36. Rxe2 Rd5) 34. g4 {[%emt 0:00:03]} (34. Re4 {simplifies} Rxd6 35. R1xe2 Rxe2 36. Rxe2 Rd5 37. Kg4) 34... Rf6 {[%emt 0:00:08]} 35. Rxe2 {[%emt 0:00:01]} Rdxd6 {[%emt 0:00:01]} 36. Rxd6 {[%emt 0:00:01]} Rxd6 {[%emt 0:00:01] KR-KR} 37. Re3 {[%emt 0:00:02]} Rd5 {[%emt 0:00:02]} 38. b3 {[%emt 0:00:04]} Rxb5 39. d4 Rd5 {[%emt 0:00:20]} 40. Rd3 Kf6 {[%emt 0:00:02]} 41. Kg3 h5 {[%emt 0:00:00]} 42. gxh5 {[%emt 0:00:01]} Rxh5 {[%emt 0:00:00]} 43. Kf2 {[%emt 0:00:17]} Rh2+ {[%emt 0:00:00]} 44. Kg3 {[%emt 0:00:00]} Rc2 {[%emt 0:00:00]} 45. d5 {[%emt 0:00:00]} Ke7 {[%emt 0:00:00]} 46. Kf4 {[%emt 0:00:00]} Kd6 {[%emt 0:00:00]} 47. Rg3 {[%emt 0:00:00] Against Rg2} Kxd5 {[%emt 0:00:01] And now ...Kd4 would win.} 48. Rxg7 {[%emt 0:00:00]} b5 {[%emt 0:00:03] Strongly threatening ...Kd4.} 49. Rd7+ {[%emt 0:00:00]} Kc6 {[%emt 0:00:02]} 50. Rd3 {[%emt 0:00:14][%mdl 8192] [#]} (50. Rd4 $11) 50... Kc5 $1 $19 {[%emt 0:00:02]} 51. Ke3 {[%emt 0:00:00]} Kb4 {[%emt 0:00:02] ( -> ...Rc3)} 52. Rd5 {[%emt 0:00:00]} Rc3+ {[%emt 0:00:14]} ({Worse is} 52... Kxb3 53. Rxb5+ Kc4 54. Rh5 $11) 53. Kd2 Rxb3 {[%emt 0:00:02]} ({Inferior is} 53... Kxb3 54. Rxb5+ Kc4 55. Rc5+ Kxc5 56. Kxc3 $11) 54. Kc2 {[#]} Rh3 $2 {[%emt 0:00:00]} (54... Ka3 $1 $19 55. Rd7 Rb2+ 56. Kc1 b4) 55. Kb1 {[%emt 0:00:00] The position is equal.} Rh2 {[%emt 0:00:00]} 56. Rg5 {[%emt 0:00:00]} Rh1+ {[%emt 0:00:00]} 57. Kb2 {[%emt 0:00:00]} Rh2+ {[%emt 0:00:00]} 58. Kb1 {[%emt 0:00:00] Weighted Error Value: White=0.23 (precise) /Black=0.21 (precise)} 1/2-1/2